Cogmind - Beta 14 @@@ ROGUE MODE // 2024.09.07 @ 22:05:28 Player: human Result: Destroyed by Y-72 Warden with Railgun Performance ------------- Evolutions (5) 2500 Regions Visited (14) 2800 Robots Destroyed (85) 425 Value Destroyed (2778) 2778 Prototype IDs (27) 540 Alien Tech Used (0) 0 Bonus (471) 471 TOTAL SCORE: 9514 Bonus ------- Follower Combat Kills 171 Aligned with FarCom 300 Cogmind --------- Core Integrity 0/1000 Matter 300/300 Energy 100/100 System Corruption 1% Temperature Warm (187) Movement Core (50) Location -5/Upper Caves Parts ------- > --- POWER (2) -------- (None) > --- PROPULSION (5) --- (None) > --- UTILITY (6) ------ Advanced ECM Suite Hacking Suite System Shield > --- WEAPON (4) ------- (None) > --- INVENTORY (5) ---- Improved Transmission Jammer Cloak of Protection Makeshift System Shield Disruptor Cannon Peak State ------------ > --- POWER ------------ Neutrino Core Reinforced Fission Core > --- PROPULSION ------- Flexi-carbon Leg Armored Leg Improved VSS Leg Wheel Wheel > --- UTILITY ---------- High-capacity Storage Unit Advanced ECM Suite Hacking Suite Hacking Suite System Shield Tractor Beam > --- WEAPON ----------- Tesla Rifle Hypervelocity Gauss Rifle Mass Driver Phasing Sabre > --- INVENTORY -------- Carbon-fiber Leg Wheel Improved Heat Sink Cooling System Compact Battery Compact Matter Pod Recoil Nullifier Kinecellerator Stasis Canceller Improved Transmission Jammer Cloak of Protection Force Field Improved Field Recycling Unit Improved Field Recycling Unit KE Penetrator Mass Driver Mass Driver Improved Datajack [Rating: 74] Favorites ----------- Power Light Nuclear Core Engine Light Ion Engine Power Core Light Nuclear Core Propulsion Wheel Treads Advanced Treads Leg Aluminum Leg Wheel Wheel Hover Unit Gravmag System Flight Unit VTOL Module Utility Hacking Suite Device Tractor Beam Storage High-capacity Storage Unit Processor Advanced Targeting Computer Hackware Hacking Suite Protection Experimental Utility Shielding Weapon Light Cannon Energy Gun Particle Gun Energy Cannon Heavy Plasma Cannon Ballistic Gun High-powered Shotgun Ballistic Cannon Light Cannon Launcher Grenade Launcher Impact Weapon Heavy Flail Slashing Weapon Phasing Sabre Special Melee Weapon Improved Datajack Build | -11 -10 -10 -9 -9 -9 -8 -8 -7 -7 -7 -6 -5 -5 -5 ------- Run | Yrd Mat Min Mat Min Exi Min Mat Fac Low Low Fac Fac Upp Upp Slots Evolved 10 | . . . 2 . . . 2 2 . . 2 2 . . Power 1 | . . . . . . . . . . . 1 . . . Propulsion 3 | . . . . . . . 1 1 . . 1 . . . Utility 4 | . . . 1 . . . 1 1 . . . 1 . . Weapon 2 | . . . 1 . . . . . . . . 1 . . Parts Attached 201 | 6 7 9 2 1 2 8 33 36 12 5 47 15 11 7 Power 18 | 1 1 . . . . 1 3 4 1 . 4 2 1 . Engine 6 | 1 1 . . . . 1 1 2 . . . . . . Core 12 | . . . . . . . 2 2 1 . 4 2 1 . Reactor . | . . . . . . . . . . . . . . . Propulsion 55 | 2 . 2 . 1 . 1 12 12 2 1 14 4 3 1 Treads 12 | . . . . . . 1 8 1 . . 2 . . . Leg 23 | . . . . . . . 4 6 2 1 8 1 1 . Wheel 17 | 2 . 2 . 1 . . . 5 . . 2 2 2 1 Hover 2 | . . . . . . . . . . . 1 1 . . Flight 1 | . . . . . . . . . . . 1 . . . Utility 57 | 1 3 . 1 . 2 2 8 10 6 2 15 4 2 1 Device 40 | . 3 . 1 . 1 2 3 8 5 2 8 4 2 1 Storage 4 | 1 . . . . 1 . . . . . 2 . . . Processor 2 | . . . . . . . 1 . . . 1 . . . Hackware 6 | . . . . . . . 2 2 . . 2 . . . Protection 5 | . . . . . . . 2 . 1 . 2 . . . Artifact . | . . . . . . . . . . . . . . . Weapon 71 | 2 3 7 1 . . 4 10 10 3 2 14 5 5 5 Energy Gun 7 | . . . . . . . 2 . . . 2 1 1 1 Energy Cannon 7 | . . . . . . . . 2 . . 3 1 . 1 Ballistic Gun 24 | 2 1 . . . . . 4 5 3 2 4 1 1 1 Ballistic Cannon 15 | . 2 4 . . . 1 1 . . . 2 2 1 2 Launcher 8 | . . 2 1 . . 3 1 . . . 1 . . . Special Weapon . | . . . . . . . . . . . . . . . Impact Weapon 5 | . . . . . . . 2 2 . . 1 . . . Slashing Weapon 1 | . . . . . . . . . . . . . 1 . Piercing Weapon . | . . . . . . . . . . . . . . . Special Melee Weapon 4 | . . 1 . . . . . 1 . . 1 . 1 . Unidentified Prototypes 5 | . . . . . 1 . . 1 . . 3 . . . Corrupted Parts 1 | . . . . . . . . . . . . . . 1 System Corruption 1 | . . . . . . . . . . . . . . 1 Parts Lost 96 | . 2 . 1 . . 6 15 11 8 . 19 13 1 20 Power 14 | . 1 . . . . 2 2 2 1 . 3 1 . 2 Propulsion 32 | . 1 . 1 . . 1 3 5 4 . 6 5 . 6 Utility 17 | . . . . . . 1 3 2 1 . 4 1 1 4 Weapon 33 | . . . . . . 2 7 2 2 . 6 6 . 8 Highest Loss Streak 20 | . 2 . 1 . . 3 8 3 4 . 4 7 1 20 To Critical Strikes 1 | . . . . . . . . . 1 . . . . . Average Slot Usage (%) 84 | . 90 90 94 99 100 93 82 92 91 86 64 85 88 80 Engine 3 | . 13 14 11 11 11 9 4 . . . 1 . . . Core 4 | . . . . . . . 3 4 6 7 4 4 8 9 Treads 2 | . . . . . . . 7 8 . . 2 . . . Leg 9 | . . . . . . . 6 8 22 18 5 20 17 10 Wheel 8 | . 21 18 17 21 22 17 3 9 . . 3 . 11 7 Device 11 | . 11 14 22 22 22 21 10 10 10 15 5 7 10 9 Storage 7 | . 14 14 11 11 11 11 9 7 7 7 3 5 5 4 Hackware 12 | . . . . . . . 9 15 15 15 18 17 17 15 Energy Cannon 1 | . . . . . . . . 5 . . 2 4 . . Ballistic Gun 5 | . 16 . . . . . 5 9 15 14 4 . 4 4 Ballistic Cannon 8 | . 11 23 22 22 22 21 10 . . . 2 11 7 3 Launcher 2 | . . . 11 11 11 11 4 . . . 1 . . . Impact Weapon 2 | . . . . . . . 2 3 7 7 1 4 . . Peak Build Rating 74 | 6 7 7 10 11 18 23 30 41 36 36 67 73 74 73 Average Rating 33 | 3 6 6 9 10 16 17 24 34 31 32 35 66 63 59 On Entrance 26 | . 6 6 7 9 11 18 14 29 34 31 36 64 56 73 Naked Turns . | . . . . . . . . . . . . . . . Heaviest Build 99 | 12 15 15 19 19 61 62 64 63 62 59 75 98 99 99 Greatest Support 88 | 26 26 20 20 22 22 22 66 88 30 40 85 85 51 20 Greatest Overweight (x) 9 | . 1 1 1 1 2 5 5 5 2 2 7 8 5 9 Average Overweight (x) 1 | . . . . . . 2 2 1 1 1 1 . 4 4 Largest Inventory Capacity 20 | 8 8 8 8 8 20 20 20 20 20 20 20 20 20 20 Average Capacity 16 | 6 8 8 8 8 9 20 20 20 20 20 12 20 20 17 Most Carried 20 | 5 8 8 8 8 9 20 20 20 20 18 20 20 20 20 Average Carried 14 | 1 6 8 7 7 8 11 18 19 14 14 11 19 18 16 Final Capacity 20 | 8 8 8 8 8 20 20 20 20 20 20 20 20 20 5 Final Carried 20 | 2 8 8 8 8 9 15 17 20 14 16 20 19 20 4 Class Distribution -------------------- 42% | Hacker-Mutant 12% | Hacker-Skirmisher 10% | Skirmisher 10% | Scavenger-Mutant 9% | Mutant 9% | Gunner Dominant Class ---------------- Mutant | -10/Materials Mutant | -10/Mines Gunner | -9/Materials Gunner | -9/Mines Gunner | -9/Exiles Skirmisher | -8/Mines Skirmisher | -8/Materials Hacker-Mutant | -7/Factory Scavenger-Mutant | -7/Lower Caves Hacker-Mutant | -7/Lower Caves Hacker-Mutant | -6/Factory Hacker-Skirmisher | -5/Factory Hacker-Mutant | -5/Upper Caves Hacker-Mutant | -5/Upper Caves Resources | -11 -10 -10 -9 -9 -9 -8 -8 -7 -7 -7 -6 -5 -5 -5 ----------- Run | Yrd Mat Min Mat Min Exi Min Mat Fac Low Low Fac Fac Upp Upp Matter Collected 4666 | 200 104 295 113 66 . 425 572 730 172 114 657 687 424 107 Remotely 3032 | . 66 295 113 66 . 425 458 457 142 114 83 487 285 41 Salvage Created 2668 | . 77 181 . 26 . 172 487 347 103 . 961 90 103 121 Parts 156 | . 9 13 . 4 . 16 39 15 5 . 46 1 3 5 Haulers Intercepted . | . . . . . . . . . . . . . . . Recyclers Shooed 5 | . . . . . . . . . . . 5 . . . Parts Field Recycled 3 | . . . . . . . . . . . . 3 . . Retrieved Matter 73 | . . . . . . . . . . . . 73 . . Parts Self-Destructed 12 | . . . . . . . . . 4 . . . 2 6 Prevented 1 | . . . . . . . . . . . . . . 1 Kills | -11 -10 -10 -9 -9 -9 -8 -8 -7 -7 -7 -6 -5 -5 -5 ------- Run | Yrd Mat Min Mat Min Exi Min Mat Fac Low Low Fac Fac Upp Upp Combat Hostiles Destroyed 80 | . 8 8 . 2 . 11 15 8 5 . 16 2 3 2 Melee 1 | . . . . . . . 1 . . . . . . . Guns 31 | . 2 . . . . . 7 6 4 . 10 . 1 1 Cannons 34 | . 6 6 . 2 . 5 4 1 . . 5 2 2 1 AOE 9 | . . 2 . . . 5 2 . . . . . . . Classes Destroyed 13 | . 1 1 . . . 1 5 1 . . 3 . 1 . Worker 1 | . . . . . . . 1 . . . . . . . Builder 1 | . . . . . . . . . . . 1 . . . Tunneler 1 | . . . . . . . . . . . 1 . . . Recycler 3 | . . . . . . 1 . . . . 2 . . . Watcher 1 | . . . . . . . 1 . . . . . . . Swarmer 36 | . 8 4 . 2 . 8 6 . 4 . 4 . . . Grunt 23 | . . 4 . . . 3 4 4 . . 6 . . 2 Brawler 1 | . . . . . . . . . . . 1 . . . Sentry 8 | . . . . . . . 2 2 . . 2 1 1 . Specialist 2 | . . . . . . . 2 . . . . . . . Hunter 3 | . . . . . . . 1 . 1 . . 1 . . Programmer 5 | . . . . . . . . 2 . . 3 . . . Assembled 2 | . . . . . . . . . . . . . 2 . Best Kill Streak 4 | . 3 3 . 2 . 4 4 2 4 . 4 1 1 2 Combat Bots Only 4 | . 3 3 . 2 . 4 4 2 4 . 4 1 1 2 Max Kills in Single Turn 2 | . 1 2 . 1 . 2 2 1 1 . 2 1 1 1 Gunslinging . | . . . . . . . . . . . . . . . Exploded 2 | . . 2 . . . 1 1 . . . . . . . Melee 1 | . . . . . . . 1 . . . . . . . Uniques/NPCs Destroyed . | . . . . . . . . . . . . . . . Combat | -11 -10 -10 -9 -9 -9 -8 -8 -7 -7 -7 -6 -5 -5 -5 -------- Run | Yrd Mat Min Mat Min Exi Min Mat Fac Low Low Fac Fac Upp Upp Hostile Shots Fired 1159 | . 58 33 9 . . 66 154 216 61 . 256 137 17 152 Missed 345 | . 23 15 2 . . 18 34 76 13 . 86 42 4 32 Damage Taken 12423 | . 296 156 109 . . 676 1894 1756 620 . 2403 2015 211 2287 Core 2265 | . 37 7 32 . . 66 269 217 67 . 556 283 31 700 Absorbed by Shields 61 | . . . . . . . . . . . . . . 61 Redirected to Shielding 177 | . . . . . . . 115 . . . . 62 . . Regen/Repaired (Parts) 21 | . . . . . . . 21 . . . . . . . Core Remaining (%) 66 | 100 . 82 . . . 75 51 . . 59 34 . . . Volleys Fired 200 | . 18 12 . 2 . 21 31 23 13 . 61 3 3 13 Largest 3 | . 2 2 . 2 . 3 3 3 2 . 3 3 3 3 Hottest 213 | . 70 70 . 70 . 103 130 213 56 . 129 154 147 155 Shots Fired 428 | . 36 24 . 4 . 50 82 67 26 1 101 9 8 20 Gun 225 | . 23 . . . . . 54 52 26 1 57 . 3 9 Cannon 180 | . 13 23 . 4 . 32 25 15 . . 43 9 5 11 Launcher 23 | . . 1 . . . 18 3 . . . 1 . . . Special . | . . . . . . . . . . . . . . . Kinetic 351 | . 36 23 . 4 . 32 71 49 26 1 77 9 8 15 Thermal 53 | . . . . . . . 8 18 . . 23 . . 4 Explosive 22 | . . 1 . . . 18 3 . . . . . . . Electromagnetic 2 | . . . . . . . . . . . 1 . . 1 Robot Hit Streak 32 | . 3 3 . 4 . 6 13 13 9 . 31 32 10 14 Robot Miss Streak 8 | . 4 6 . . . 5 4 8 5 . 6 1 . 1 Penetration Max 1 | . . . . . . . . 1 . . 1 . . . Secondary Targets 2 | . 1 . . . . . 1 . . . . . . . Max Gunslinging Chain 1 | . 1 . . . . . 1 . . . . . . . Shots Hit Robots 269 | . 18 13 . 2 . 17 50 49 19 . 75 6 5 15 Core Hits 168 | . 9 9 . 2 . 19 27 29 16 . 42 4 4 7 Critical Kills 3 | . . . . . . . 1 . . . 1 . 1 . Critical Parts Destroyed 7 | . . . . . . . 1 . 1 . 4 . 1 . Critical Strikes 12 | . 1 . . . . 1 2 . 1 . 5 . 2 . Destroy 8 | . . . . . . . 1 . . . 5 . 2 . Blast 2 | . 1 . . . . 1 . . . . . . . . Smash 2 | . . . . . . . 1 . 1 . . . . . Melee Attacks 33 | . . 2 . . . . 7 9 2 . 7 4 . 2 Impact 26 | . . . . . . . 7 9 2 . 4 4 . . Slashing 2 | . . . . . . . . . . . . . . 2 Piercing . | . . . . . . . . . . . . . . . Sneak Attacks 1 | . . . . . . . . . 1 . . . . . Combat Hostiles 1 | . . . . . . . . . 1 . . . . . Follow-up Attacks . | . . . . . . . . . . . . . . . Damage Inflicted 6698 | . 240 271 . 34 . 977 1016 1053 347 . 2091 187 86 396 Guns 2760 | . 94 . . . . . 438 732 239 . 1075 . 19 163 Cannons 2713 | . 146 199 . 34 . 270 330 321 . . 926 187 67 233 Explosions 958 | . . 72 . . . 707 161 . . . 18 . . . Melee 267 | . . . . . . . 87 . 108 . 72 . . . Ramming . | . . . . . . . . . . . . . . . Kinetic 4360 | . 240 199 . 34 . 270 675 690 239 . 1496 187 86 244 Thermal 1090 | . . . . . . . 93 363 . . 505 . . 129 Explosive 940 | . . 72 . . . 707 161 . . . . . . . Electromagnetic 41 | . . . . . . . . . . . 18 . . 23 Impact 267 | . . . . . . . 87 . 108 . 72 . . . Slashing . | . . . . . . . . . . . . . . . Piercing . | . . . . . . . . . . . . . . . Highest Corruption 3 | . . . . . . . 3 2 2 2 . . . 1 Average Corruption 1 | . . . . . . . 2 1 2 2 . . . 1 Corruption Purged . | . . . . . . . . . . . . . . . Corruption Blocked . | . . . . . . . . . . . . . . . Effects 40 | . . . . . . . 9 13 7 9 . . . 2 Message Errors 15 | . . . . . . . 4 4 3 4 . . . . Matter Fused 9 | . . . . . . . 3 4 2 . . . . . Heat Flow Errors 1 | . . . . . . . 1 . . . . . . . Energy Discharges 4 | . . . . . . . . 2 1 1 . . . . Parts Fused 1 | . . . . . . . . . 1 . . . . . Data Loss (minor) 5 | . . . . . . . . 2 . 2 . . . 1 Data Loss (major) 3 | . . . . . . . 1 1 . 1 . . . . Misfires 1 | . . . . . . . . . . 1 . . . . Weapon Failures 1 | . . . . . . . . . . . . . . 1 Overload Shots . | . . . . . . . . . . . . . . . Overflow Damage 266 | . . . . . . 23 37 4 108 . 94 . . . Projectiles 96 | . . . . . . . . 4 . . 92 . . . Explosions 31 | . . . . . . 23 8 . . . . . . . Melee 139 | . . . . . . . 29 . 108 . 2 . . . Knockbacks 19 | . 1 2 . . . 7 3 . 1 . 4 1 . . Impact 1 | . . . . . . . . . 1 . . . . . Kinetic 16 | . 1 2 . . . 6 3 . . . 3 1 . . Secondary 2 | . . . . . . 1 . . . . 1 . . . Self-Inflicted Damage 223 | . . 2 . . . 170 51 . . . . . . . Shots 9 | . . 1 . . . 5 3 . . . . . . . Rammed . | . . . . . . . . . . . . . . . Targets Rammed . | . . . . . . . . . . . . . . . Kicked . | . . . . . . . . . . . . . . . Crushed . | . . . . . . . . . . . . . . . Highest Temperature 408 | . 27 45 . . . 66 295 408 . . 120 75 63 333 Average Temperature 75 | . 10 13 . . . 32 71 121 . . 28 38 29 216 Received Heat Transfer 2899 | . 12 38 54 . . 135 549 441 9 . 862 117 36 646 Effects 2 | . . . . . . . . 1 . . . . . 1 Energy Bleed 1 | . . . . . . . . 1 . . . . . . Interference 1 | . . . . . . . . . . . . . . 1 Siege Activations . | . . . . . . . . . . . . . . . Robots Corrupted 2 | . . . . . . . 1 . 1 . . . . . Combat Hostiles 2 | . . . . . . . 1 . 1 . . . . . Parts Fried 3 | . . . . . . . 2 . 1 . . . . . Impact Corruptions 5 | . . . . . . . 2 . 2 . 1 . . . Robots Melted 2 | . . . . . . . . 1 . . 1 . . . Combat Hostiles 2 | . . . . . . . . 1 . . 1 . . . Parts Melted 6 | . . . . . . . . 1 . . 5 . . . Heat Transferred 1818 | . . . . . . . 222 646 . . 750 . . 200 Parts Sabotaged . | . . . . . . . . . . . . . . . Parts Stolen . | . . . . . . . . . . . . . . . Parts Stripped . | . . . . . . . . . . . . . . . Power Chain Reactions . | . . . . . . . . . . . . . . . Alert | -11 -10 -10 -9 -9 -9 -8 -8 -7 -7 -7 -6 -5 -5 -5 ------- Run | Yrd Mat Min Mat Min Exi Min Mat Fac Low Low Fac Fac Upp Upp Peak Influence 363 | . 246 236 197 176 . 265 363 80 . . 153 49 . . Initial 95 | . . 95 91 76 . . 58 42 . . . 21 . . Average 72 | . 105 152 124 175 . 109 108 36 . . 43 30 . . Maximum Alert Level 1 | . 1 1 . . . 1 1 . . . . . . . Low Security (%) 95 | 100 85 85 100 100 . 93 79 100 . . 100 100 . . Level 1 4 | . 14 14 . . . 6 20 . . . . . . . Level 2 . | . . . . . . . . . . . . . . . Level 3 . | . . . . . . . . . . . . . . . Level 4 . | . . . . . . . . . . . . . . . Level 5 . | . . . . . . . . . . . . . . . High Security . | . . . . . . . . . . . . . . . Max Security . | . . . . . . . . . . . . . . . Squads Dispatched 22 | . 1 . 2 . . . 4 6 . . 7 2 . . Investigation 10 | . . . . . . . 1 4 . . 4 1 . . Extermination 4 | . . . . . . . . 1 . . 3 . . . Reinforcement 8 | . 1 . 2 . . . 3 1 . . . 1 . . Assault . | . . . . . . . . . . . . . . . Garrison . | . . . . . . . . . . . . . . . Intercept . | . . . . . . . . . . . . . . . Searches Triggered . | . . . . . . . . . . . . . . . Construction Impeded . | . . . . . . . . . . . . . . . Haulers Reinforced . | . . . . . . . . . . . . . . . Active Scanning Responses . | . . . . . . . . . . . . . . . Cargo Convoy Interrupts . | . . . . . . . . . . . . . . . Stealth | -11 -10 -10 -9 -9 -9 -8 -8 -7 -7 -7 -6 -5 -5 -5 --------- Run | Yrd Mat Min Mat Min Exi Min Mat Fac Low Low Fac Fac Upp Upp Distress Signals 3 | . . . . . . . 1 1 . . 1 . . . Communications Jammed . | . . . . . . . . . . . . . . . Distress Signals . | . . . . . . . . . . . . . . . Times Spotted 165 | . 16 15 6 3 . 15 22 19 7 3 30 12 4 13 Peak Tracking Total 7 | . 6 4 5 3 . 4 5 4 3 3 4 5 2 7 Tactical Retreats 19 | . 1 2 . . . . 3 2 2 1 3 2 1 2 Traps | -11 -10 -10 -9 -9 -9 -8 -8 -7 -7 -7 -6 -5 -5 -5 ------- Run | Yrd Mat Min Mat Min Exi Min Mat Fac Low Low Fac Fac Upp Upp Traps Triggered 7 | . . . . . . . 2 3 . . 2 . . . Indirectly . | . . . . . . . . . . . . . . . Trap Hack Attempts 9 | . . . . . . . . 9 . . . . . . Triggered . | . . . . . . . . . . . . . . . Disarmed 2 | . . . . . . . . 2 . . . . . . Reprogrammed . | . . . . . . . . . . . . . . . Reused . | . . . . . . . . . . . . . . . Traps Extracted . | . . . . . . . . . . . . . . . Installed 1 | . . 1 . . . . . . . . . . . . Triggered . | . . . . . . . . . . . . . . . Machines | -11 -10 -10 -9 -9 -9 -8 -8 -7 -7 -7 -6 -5 -5 -5 ---------- Run | Yrd Mat Min Mat Min Exi Min Mat Fac Low Low Fac Fac Upp Upp Machines Disabled 8 | . . . . . . 3 2 . . . . . . 3 Max in Single Turn 2 | . . . . . . 2 1 . . . . . . 1 Garrison Access 1 | . . . . . . . . . . . . 1 . . Machines Repaired . | . . . . . . . . . . . . . . . Machines Dismantled . | . . . . . . . . . . . . . . . Machines Sabotaged . | . . . . . . . . . . . . . . . Overloaded Fab Kills . | . . . . . . . . . . . . . . . Hacking | -11 -10 -10 -9 -9 -9 -8 -8 -7 -7 -7 -6 -5 -5 -5 --------- Run | Yrd Mat Min Mat Min Exi Min Mat Fac Low Low Fac Fac Upp Upp Machines Accessed 37 | . 6 . 1 1 1 . 5 9 . . 11 2 1 . Terminals 20 | . 5 . 1 1 . . 3 7 . . 3 . . . Fabricators 4 | . . . . . . . . 1 . . 2 1 . . Repair Stations 3 | . . . . . . . 1 . . . 2 . . . Recycling Units 4 | . 1 . . . . . 1 . . . 2 . . . Scanalyzers 3 | . . . . . . . . 1 . . 2 . . . Garrison Access 1 | . . . . . . . . . . . . 1 . . Total Hacks 107 | . 19 . 2 2 1 . 20 28 . . 29 5 1 . Successful 55 | . 10 . . 1 1 . 9 16 . . 14 3 1 . Failed 51 | . 9 . 2 1 . . 11 11 . . 15 2 . . Catastrophic 10 | . 2 . 1 . . . . 4 . . 3 . . . Database Lockouts 1 | . . . . . . . . 1 . . . . . . Manual 52 | . 15 . 2 1 1 . 12 16 . . 5 . . . Terminals 63 | . 17 . 2 2 . . 12 20 . . 10 . . . Fabricators 11 | . . . . . . . . 2 . . 6 3 . . Repair Stations 11 | . . . . . . . 7 . . . 4 . . . Recycling Units 7 | . 2 . . . . . 1 . . . 4 . . . Scanalyzers 11 | . . . . . . . . 6 . . 5 . . . Garrison Access 2 | . . . . . . . . . . . . 2 . . Terminal Hacks 22 | . 6 . . 1 1 . 4 4 . . 5 . 1 . Record 4 | . . . . . . . . 1 . . 3 . . . Part Schematic 3 | . . . . . . . 1 2 . . . . . . Open Door 1 | . . . . . . . . . . . . . 1 . Branch Access Points 1 | . 1 . . . . . . . . . . . . . Scanalyzer Index 1 | . . . . . . . 1 . . . . . . . Alert Level 3 | . 1 . . . . . . . . . 2 . . . Unreport Threat 2 | . . . . . . . 1 1 . . . . . . Locate Traps 2 | . 1 . . . . . 1 . . . . . . . Recall Reinforcements 1 | . 1 . . . . . . . . . . . . . Registered Components 2 | . 2 . . . . . . . . . . . . . Zone Layout 1 | . . . . 1 . . . . . . . . . . Derelict Proto ID Bank 1 | . . . . . 1 . . . . . . . . . Fabricator Hacks 8 | . . . . . . . . 2 . . 4 2 . . Load Schematic 4 | . . . . . . . . 1 . . 2 1 . . Build 4 | . . . . . . . . 1 . . 2 1 . . Repair Station Hacks 4 | . . . . . . . 3 . . . 1 . . . Scan Component 2 | . . . . . . . 2 . . . . . . . Repair 1 | . . . . . . . 1 . . . . . . . Refit 1 | . . . . . . . . . . . 1 . . . Recycling Unit Hacks 4 | . 1 . . . . . 1 . . . 2 . . . Retrieve Matter 1 | . 1 . . . . . . . . . . . . . Retrieve Components 3 | . . . . . . . 1 . . . 2 . . . Scanalyzer 7 | . . . . . . . . 6 . . 1 . . . Insert Component 4 | . . . . . . . . 3 . . 1 . . . Analyze 3 | . . . . . . . . 3 . . . . . . Garrison Access Hacks 1 | . . . . . . . . . . . . 1 . . Seal Access 1 | . . . . . . . . . . . . 1 . . Unauthorized Hacks 9 | . 3 . . . . . 1 4 . . 1 . . . Terminals 8 | . 3 . . . . . 1 4 . . . . . . Assimilate 1 | . 1 . . . . . . . . . . . . . Botnet 7 | . 2 . . . . . 1 4 . . . . . . Fabricators . | . . . . . . . . . . . . . . . Repair Stations . | . . . . . . . . . . . . . . . Recycling Units 1 | . . . . . . . . . . . 1 . . . Reject 1 | . . . . . . . . . . . 1 . . . Scanalyzers . | . . . . . . . . . . . . . . . Garrison Access . | . . . . . . . . . . . . . . . Data Cores Recovered . | . . . . . . . . . . . . . . . Used . | . . . . . . . . . . . . . . . Hacking Detections 31 | . 5 . 1 1 . . 4 9 . . 10 1 . . Full Trace Events 10 | . . . . . . . 1 4 . . 4 1 . . Feedback Events . | . . . . . . . . . . . . . . . Feedback Blocked . | . . . . . . . . . . . . . . . Robot Schematics Acquired . | . . . . . . . . . . . . . . . Robots Built . | . . . . . . . . . . . . . . . Authchips . | . . . . . . . . . . . . . . . Time . | . . . . . . . . . . . . . . . Total Robot Build Rating . | . . . . . . . . . . . . . . . Part Schematics Acquired 5 | . . . . . . . 1 4 . . . . . . Parts Built 7 | . . . . . . . . 2 . . 3 2 . . Authchips . | . . . . . . . . . . . . . . . Time 121 | . . . . . . . . 25 . . 49 47 . . Total Part Build Rating 17 | . . . . . . . . 2 . . 5 10 . . Parts Repaired 1 | . . . . . . . 1 . . . . . . . Time 38 | . . . . . . . 38 . . . . . . . Parts Recycled . | . . . . . . . . . . . . . . . Recycled Matter . | . . . . . . . . . . . . . . . Retrieved Matter . | . . . . . . . . . . . . . . . Retrieved Components 6 | . . . . . . . 6 . . . . . . . Parts Scanalyzed 4 | . . . . . . . . 3 . . 1 . . . Part Schematics Acquired 2 | . . . . . . . . 2 . . . . . . Parts Damaged . | . . . . . . . . . . . . . . . Bothacking | -11 -10 -10 -9 -9 -9 -8 -8 -7 -7 -7 -6 -5 -5 -5 ------------ Run | Yrd Mat Min Mat Min Exi Min Mat Fac Low Low Fac Fac Upp Upp Used RIF Installer . | . . . . . . . . . . . . . . . Robots Hacked . | . . . . . . . . . . . . . . . Non-combat . | . . . . . . . . . . . . . . . Combat . | . . . . . . . . . . . . . . . Robot Hacks Applied . | . . . . . . . . . . . . . . . Relay Couplers Released . | . . . . . . . . . . . . . . . Fabnet Peak Effective % . | . . . . . . . . . . . . . . . Robots Rewired . | . . . . . . . . . . . . . . . Allies Hacked . | . . . . . . . . . . . . . . . Hacks Repelled . | . . . . . . . . . . . . . . . Allies | -11 -10 -10 -9 -9 -9 -8 -8 -7 -7 -7 -6 -5 -5 -5 -------- Run | Yrd Mat Min Mat Min Exi Min Mat Fac Low Low Fac Fac Upp Upp Total Allies 5 | . . 3 . 2 . . . . . . . . . . Largest Group 4 | . . 3 3 4 4 2 . . . . . . . . Highest-Rated Group 74 | . . 40 40 74 74 32 . . . . . . . . Highest-Rated Ally 31 | . . 16 16 31 31 16 . . . . . . . . Total Orders . | . . . . . . . . . . . . . . . Ally Attacks 46 | . . 15 26 4 . 1 . . . . . . . . Total Damage 563 | . . 222 295 29 . 17 . . . . . . . . Kills 12 | . . 6 3 2 . 1 . . . . . . . . Allies Corrupted . | . . . . . . . . . . . . . . . Allies Melted . | . . . . . . . . . . . . . . . Intel | -11 -10 -10 -9 -9 -9 -8 -8 -7 -7 -7 -6 -5 -5 -5 ------- Run | Yrd Mat Min Mat Min Exi Min Mat Fac Low Low Fac Fac Upp Upp Robot Analysis Total . | . . . . . . . . . . . . . . . Derelict Logs Recovered 3 | . . 1 . 1 . . . . 1 . . . . . Drone Launches . | . . . . . . . . . . . . . . . Drone Recoveries . | . . . . . . . . . . . . . . . Exploration | -11 -10 -10 -9 -9 -9 -8 -8 -7 -7 -7 -6 -5 -5 -5 ------------- Run | Yrd Mat Min Mat Min Exi Min Mat Fac Low Low Fac Fac Upp Upp Turns Passed 9036 | 48 301 492 75 357 397 578 599 1266 867 474 1860 711 849 162 Spaces Moved 5656 | 39 249 439 82 360 403 380 250 791 357 201 1158 399 473 75 Core 224 | 3 . . . . . . . . . . 219 . . 2 Treads 391 | . . . . . . . 65 211 . . 115 . . . Legs 1198 | . . . . . . . 36 . 357 201 174 383 47 . Wheels 3614 | 36 249 439 82 360 403 380 149 580 . . 421 16 426 73 Hover 229 | . . . . . . . . . . . 229 . . . Flight . | . . . . . . . . . . . . . . . Fastest Speed 50 | 50 80 80 80 85 85 115 145 98 190 196 50 112 140 140 Average Speed 134 | 86 91 90 86 85 96 126 163 129 223 231 127 151 172 149 Slowest Speed 500 | 90 95 95 95 95 115 165 305 165 260 260 400 265 470 500 Overloaded Moves . | . . . . . . . . . . . . . . . Propulsion Burnouts . | . . . . . . . . . . . . . . . Robots Hopped . | . . . . . . . . . . . . . . . Cave-ins Triggered . | . . . . . . . . . . . . . . . Exploration Rate (%) 43 | 4 53 72 10 84 88 88 31 23 55 27 26 14 68 13 Regions Visited 14 Branch Regions 8 Pre-discovered Areas 3 | . . 2 . . . . . . 1 . . . . . Known Exits Taken 2 | . 1 . . . . . 1 . . . . . . . Unknown Exits Taken 12 | 1 . 1 1 1 1 1 . 1 1 1 1 1 1 . Scrap Searched 7 | . . 1 . 1 . 1 . . 1 1 . . 2 . Spaces Dug 26 | . . . . . . . 4 6 1 . 10 4 . 1 Terrain Destroyed 192 | . . 2 . . . 130 22 6 1 . 15 6 6 4 Melee 18 | . . . . . . . 4 6 1 . 2 4 . 1 Projectile 31 | . . . . . . 1 6 . . . 13 2 6 3 AOE 143 | . . 2 . . . 129 12 . . . . . . . Terrain Rammed . | . . . . . . . . . . . . . . . Walls Destroyed . | . . . . . . . . . . . . . . . Machines Disabled . | . . . . . . . . . . . . . . . Actions | -11 -10 -10 -9 -9 -9 -8 -8 -7 -7 -7 -6 -5 -5 -5 --------- Run | Yrd Mat Min Mat Min Exi Min Mat Fac Low Low Fac Fac Upp Upp Total 6658 | 52 289 505 85 405 412 437 366 969 396 211 1430 495 502 104 Wait 336 | . 1 42 . 41 4 7 17 55 7 . 99 56 2 5 Move 5642 | 38 248 438 81 359 402 379 249 790 356 200 1157 398 472 75 Hop . | . . . . . . . . . . . . . . . Pick Up 161 | 8 11 . 2 1 2 15 24 27 4 3 42 12 9 1 Fast Attach 35 | . 1 2 . 1 1 . 2 9 . . 14 4 1 . Attach 103 | 6 2 . 2 . . 6 18 13 7 4 21 10 8 6 Detach 13 | . . . . . . 2 . 2 . 3 2 2 2 . Swap 64 | . 4 7 . . 1 2 13 15 5 1 12 1 2 1 Drop 61 | . 4 1 . 1 2 5 5 17 2 . 15 5 3 1 Fire 200 | . 18 12 . 2 . 21 31 23 13 . 61 3 3 13 Melee 33 | . . 2 . . . . 7 9 2 . 7 4 . 2 Ram . | . . . . . . . . . . . . . . . Kick . | . . . . . . . . . . . . . . . Crush . | . . . . . . . . . . . . . . . Escape Stasis . | . . . . . . . . . . . . . . . Rewire . | . . . . . . . . . . . . . . . Trap 10 | . . 1 . . . . . 9 . . . . . . Miscellaneous . | . . . . . . . . . . . . . . . Route ------- -11/Scrapyard -10/Materials (discovered 2 exits: *Min x2) -10/Mines -9/Materials -9/Mines (discovered 3 exits: *Mat x2 / *Exi) -9/Exiles (discovered 2 exits: [*Min x2]) -8/Mines -8/Materials (discovered 2 exits: *Fac / [*Sto]) -7/Factory -7/Lower Caves -7/Lower Caves -6/Factory -5/Factory -5/Upper Caves -5/Upper Caves History --------- Turn | Location | Event 30 | -11/Scrapyard | Discovered new exit (range 16) 49 | -11/Scrapyard | Entered Materials 126 | -10/Materials | Identified exit to Mines 303 | -10/Materials | Build established: Mutant 350 | -10/Materials | Entered Mines 353 | -10/Mines | Assisted by bots powering up and referring to "LRC-V3" 387 | -10/Mines | Met a Derelict bent on vengeance 388 | -10/Mines | Discovered new exit (range 6) 390 | -10/Mines | Learned location of Storage (-8) 470 | -10/Mines | Found a hidden stash of uninstalled traps 631 | -10/Mines | Excavation squad dispatched 631 | -10/Mines | A large section of the Mines collapsed 842 | -10/Mines | Entered Materials 842 | -9/Materials | Accompanied by 3 allies 842 | -9/Materials | Evolved 2 slots: Utility x1, Weapon x1 879 | -9/Materials | Discovered new exit (range 14) 917 | -9/Materials | Entered Mines 917 | -9/Mines | Accompanied by 2 allies 993 | -9/Mines | Discovered new exit (range 10) 1131 | -9/Mines | Build established: Gunner 1178 | -9/Mines | Learned Materials emergency access door positions 1223 | -9/Mines | Discovered new exit (range 7) 1233 | -9/Mines | Deemed a non-threat by the Exiles lab entrance 1233 | -9/Mines | Discovered new exit (range 5) 1274 | -9/Mines | Entered Exiles 1274 | -9/Exiles | Accompanied by 4 allies 1287 | -9/Exiles | Discovered new exit (range 15) 1297 | -9/Exiles | Met 8R-AWN 1304 | -9/Exiles | Led the pair of lost Derelicts to a safe place 1316 | -9/Exiles | Met EX-HEX 1348 | -9/Exiles | Met EX-BIN 1357 | -9/Exiles | Aligned with FarCom system 1358 | -9/Exiles | Given EX-Vault access code 1377 | -9/Exiles | Opened EX-Vault 1382 | -9/Exiles | Found Prototype Device 1382 | -9/Exiles | Identified Cloak of Protection 1408 | -9/Exiles | Warned to stay clear of 0b10 Research branches 1439 | -9/Exiles | Met EX-DEC 1489 | -9/Exiles | Visited The Gauntlet 1658 | -9/Exiles | Discovered new exit (range 10) 1671 | -9/Exiles | Left Exiles lab with Cloak of Protection 1671 | -9/Exiles | Entered Mines 1671 | -8/Mines | Accompanied by 2 allies 1966 | -8/Mines | Build established: Skirmisher 2095 | -8/Mines | Found DCF Scrap (14 items) 2219 | -8/Mines | Lost 3 parts (1p1u1w) 2234 | -8/Mines | Discovered new exit (range 7) 2249 | -8/Mines | Entered Materials 2249 | -8/Materials | Evolved 2 slots: Propulsion x1, Utility x1 2305 | -8/Materials | Discovered new exit (range 2) 2418 | -8/Materials | Repaired Recoil Stabilizer 2567 | -8/Materials | Lost 6 parts (1p1n1u3w) 2779 | -8/Materials | Lost 8 parts (1p2n1u4w) 2810 | -8/Materials | Discovered new exit (range 12) 2848 | -8/Materials | Identified exit to Factory 2848 | -8/Materials | Entered Factory 2848 | -7/Factory | Evolved 2 slots: Propulsion x1, Utility x1 3061 | -7/Factory | Build established: Hacker-Mutant 3166 | -7/Factory | Lost 3 parts (1n2u) 3288 | -7/Factory | Central database locked down 3418 | -7/Factory | Fabricated Tractor Beam? 4093 | -7/Factory | Discovered new exit (range 14) 4114 | -7/Factory | Entered Lower Caves 4163 | -7/Lower Caves | Lost 4 parts (3n1u) 4275 | -7/Lower Caves | Lost 3 parts (1p2w) 4581 | -7/Lower Caves | Build established: Scavenger-Mutant 4903 | -7/Lower Caves | Discovered new exit (range 7) 4950 | -7/Lower Caves | Attracted the attention of an 0b10 checkpoint 4981 | -7/Lower Caves | Entered another Lower Caves area 5002 | -7/Lower Caves | Discovered new exit (range 13) 5255 | -7/Lower Caves | Build established: Hacker-Mutant 5455 | -7/Lower Caves | Entered Factory 5455 | -6/Factory | Evolved 2 slots: Power x1, Propulsion x1 5663 | -6/Factory | Lost 4 parts (3n1u) 6011 | -6/Factory | Fabricated Hacking Suite (x1) 6315 | -6/Factory | Lost 4 parts (1n1u2w) 6456 | -6/Factory | Lost 3 parts (1p1u1w) 6919 | -6/Factory | Lost 3 parts (1n1u1w) 7145 | -6/Factory | Core integrity fell below 50% 7225 | -6/Factory | Discovered new exit (range 12) 7281 | -6/Factory | Fabricated Tractor Beam (x2) 7315 | -6/Factory | Entered another Factory area 7315 | -5/Factory | Evolved 2 slots: Utility x1, Weapon x1 7644 | -5/Factory | Lost 7 parts (1p3n3w) 7785 | -5/Factory | Discovered new exit (range 12) 7810 | -5/Factory | Fabricated Hyp. Gauss Rifle? 7945 | -5/Factory | Build established: Hacker-Skirmisher 8026 | -5/Factory | Entered Upper Caves 8045 | -5/Upper Caves | Lost 6 parts (2n1u3w) 8236 | -5/Upper Caves | Encountered an infested base 8300 | -5/Upper Caves | Attracted the attention of an 0b10 checkpoint 8662 | -5/Upper Caves | Build established: Hacker-Mutant 8774 | -5/Upper Caves | Discovered new exit (range 5) 8875 | -5/Upper Caves | Entered another Upper Caves area 8955 | -5/Upper Caves | Attracted the attention of an 0b10 base 8997 | -5/Upper Caves | Core integrity fell below 50% 9023 | -5/Upper Caves | Core integrity fell below 20% 9037 | -5/Upper Caves | Destroyed by Y-72 Warden with Railgun Last Messages --------------- 09018_ Mass Driver destroyed. 09018_ Extracted 56 matter. 09019_ Penetrated by Slug. 09019_ Slug penetrates Wall. 09024_ Extracted 10 matter. 09025_ Penetrated by Slug. 09025_ Slug penetrates Wall. 09030_ Adv. Plasma Cannon destroyed. 09031_ Penetrated by Slug. 09031_ Slug penetrates Wall. 09033_ Overheating: System interference. 09033_ Phasing Sabre temporarily disabled. 09033_ Rnf. Fission Core destroyed. 09034_ Y-72 Warden heat damages Hvy. Armor Plating, Quantum Rifle, Adv. Heat Sink, Med. Treads. 09034_ Phasing Sabre destroyed. 09035_ Slug penetrates Wall. 09037_ Acquired Disruptor Cannon. [Achievement: Just Browsing] Map ----- +----------------------------------------------------+ | | | | | | | ?????????????????????????????????????????????????? | | ?????????????????????????????????????????????????? | | ?????????????????????????????????????????????????? | | ?????????????????????????????????????????????????? | | ?????????????????????????????????????????????????? | | ?????????????????????????????????????????????????? | | ?????????????????????????????????????????????????? | | ?????????????????????????????????????????????????? | | ?????????????????????????????????????????????????? | | ?????????????????????????????????????????????????? | | ?????????????????????????????????????????????????? | | ?????????????????????????????????????????????????? | | ?????????????????????????????????????????????????? | | ?????????????????????????????????????????????????? | | ?????????????????????????????????????????????????? | | ??????????????#?????#????????????????????????????? | | ?????????????? #????? ?#?????????????????????????? | | ?????????????? #####;##;########## ????????????? | | ?????????????? ? $ ??????????????? | | ?????????????? ?? ? ????????????????? | | ???###???????? #####/+;##; #?????????????????? | | ??## ????????# #" !!!]]# #???????? ????????? | | ?## ????????# #" !!!!@]# ##????? #???????? | | ## ???????## #" s=!=!% # #### ???????? | | ? ???????# # % # ??????? | | ?? ??????# # %Yg!# ??????????? | | ??? ??????# #"" % !+% #?????????????????? | | ???# ??????? #"T ;! ##?????????????????? | | ???# ???????# #"" g # ##?????????????????? | | ???# ???????# #" " " "# "#?????????????????? | | ??## ######## ####+#;##;# ##?????????????????? | | ?## #??????????????????? | | ## ##????????????????? | | # ###### ######;## ### ##???#????#??????? | | ## #????# #???# ### ### #??????? | | ???#### #????# #???# ## ???????? | | ????????# #????# #???# ## #### #??????????? | | ????????# #????# #???# ## ### ##??????????? | | ????????# #????# #???# ## ####???????????? | | ????????# #????# #???# ## ### ##??????????????? | | ????????# #???## #???# ## #?#####???????????????? | | ????????# ##### ##??# ## #?????????????????????? | | ????????# ##?# ## #?????????????????????? | | ????????# #?# ## #?????????????????????? | | ????????####### ##?# ## #?????????????????????? | | ??????????????## ##?# ### ?????????????????????? | | ???????????????#& ### ## #??????????????????? | +----------------------------------------------------+ Best States ------------- Heat Dissipation 62 Energy Generation 33 Energy Capacity 525 Matter Stores 300 Matter Capacity 300 Sight Range 16 Terrain Scan Density 10 ECM Strength 2 Jamming Range 14 Cloak Strength 5 Armor Coverage 150 Propulsion Shielding 66 Utility Shielding 90 Evasion (%) 55 Targeting Accuracy 8 Recoil Reduction 8 Matter Filtering 30 Kinecelleration 30 Offensive Hacking 30 Defensive Hacking 10 Item Schematics ----------------- Hacking Suite | -8/Materials | Hacked Hyp. Gauss Rifle | -7/Factory | Hacked Tractor Beam | -7/Factory | Hacked Adv. ECM Suite | -7/Factory | Scanalyzed Adv. Targeting Computer | -7/Factory | Scanalyzed Robot Schematics ------------------ None Fabricated ------------ Tractor Beam | x2 | -7/Factory Hacking Suite | x1 | -6/Factory Tractor Beam | x2 | -6/Factory Hyp. Gauss Rifle | x2 | -5/Factory Alien Tech Used ----------------- None Achievements -------------- Hey, That's Mine! Just Browsing Leap Before You Look Use The Force Challenges ------------ None Game ------ Seed PlasmaDerelictRedirector Manual? 0 Play Time 03:48:38 Cumulative 35.5 hours Start 2024.09.07 @ 14:02:46 End 2024.09.07 @ 22:05:28 Sessions 6 Manual Loads 0 Difficulty Rogue Special Mode None Game No. 22 Rogue 22 Adventurer 0 Explorer 0 Win Type - Total 0 Types 0/0/0/0/0/0/0/0/0 Lore% 8 Gallery% 25 Achievement% 23 Wizard Run 0 Options --------- Layout 1 ASCII 0 Keyboard 0 Movement Mouse Keybinds 0 Fullscreen 1 Font 24/Smallcaps Map View 50x35 Zoom Use 0% Tactical HUD 1 Map Filters NONE Filters NONE Steam 1 RUN: 4b57d3f4-101b-47e8-bdcd-4e256a0b50bd